Cogmind - Beta 17.1 @@@ ROGUE MODE // 2026.09.16 @ 17:47:41 Player: teag2 Result: Self-destructed Performance ------------- Evolutions (6) 3000 Regions Visited (19) 3800 Robots Destroyed (216) 1080 Value Destroyed (8079) 8079 Prototype IDs (238) 4760 Alien Tech Used (0) 0 Bonus (8299) 8299 TOTAL SCORE: 29018 Bonus ------- High Alert Combat Kills 667 Follower Combat Kills 1613 Awakened Behemoth Slayer 1000 Network Hubs Disabled 200 Met Data Miner 300 Used Data Conduit 3000 Met Imprinter 300 Was Imprinted 300 MAIN.C Attacked Proxy Base 500 Built Enhanced Grunts 300 A7 Reached Mainframe 300 Met R17 at Cetus 500 Friendly Fire -681 Cogmind --------- Core Integrity 1082/1150 Matter 280/300 Energy 600/600 System Corruption 3% Temperature Cool (0) Movement Walking (192) Ox1 Location -4/Factory Parts ------- > --- POWER (2) -------- Cooled Fission Core Cooled Fission Core > --- PROPULSION (5) --- Zionite Composite Leg I Myomer Leg > --- UTILITY (9) ------ Improved Cooling System Large Storage Unit Advanced Signal Interpreter Core Analyzer Experimental Core Analyzer > --- WEAPON (3) ------- CR-A16's Behemoth Slayer > --- INVENTORY (15) --- Cooled Fission Core Quantum Reactor Advanced Heat Sink Matter Compressor (250) Advanced Shield Generator Mini Smartbomb Launcher Self-destruct Interrupter (49) Self-destruct Interrupter (48) Peak State ------------ > --- POWER ------------ Cooled Fission Core Quantum Reactor > --- PROPULSION ------- Flexi-carbon Leg Zionite Composite Leg I Myomer Leg Myomer Leg Advanced VSS Leg > --- UTILITY ---------- Advanced Heat Sink Advanced Heat Sink Large Storage Unit Experimental Core Analyzer Centrium Medium Armor Plating Centrium Medium Armor Plating Experimental Thermal Shield > --- WEAPON ----------- Heavy Plasma Cannon Compact Ion Cannon Neutron Cannon > --- INVENTORY -------- Cooled Fission Core Cooled Fission Core Myomer Leg Myomer Leg Improved Cooling System Matter Compressor Advanced Sensor Array Advanced Signal Interpreter Experimental Terrain Scan Processor Improved Transmission Jammer Centrium Medium Armor Plating Mini Smartbomb Launcher CR-A16's Behemoth Slayer Self-destruct Interrupter Self-destruct Interrupter [Rating: 123] Favorites ----------- Power Cooled Fission Core Engine Light Angular Momentum Engine Power Core Cooled Fission Core Reactor Antimatter Reactor Propulsion Carbon-fiber Leg Treads Improved Treads Leg Carbon-fiber Leg Hover Unit Antigrav System Flight Unit Improved VTOL Module Utility Large Storage Unit Device Advanced Heat Sink Storage Large Storage Unit Processor Experimental Core Analyzer Hackware System Shield Protection Improved Medium Armor Plating Weapon Gauss Rifle Energy Gun Medium Laser Energy Cannon Compact Ion Cannon Ballistic Gun Gauss Rifle Ballistic Cannon Flak Cannon Launcher Grenade Launcher Slashing Weapon Katana Piercing Weapon CR-A16's Behemoth Slayer Special Melee Weapon Advanced Datajack Build | -11 -10 -10 -8 -7 -7 -7 -7 -6 -6 -6 -6 -6 -5 -5 -5 -5 -5 -5 -4 ------- Run | Yrd Mat Sub Mat Fac Low Low Zio Pro Fac Low Low Dat Pro Fac Ext Cet Arc Hub Fac Slots Evolved 12 | . . . 4 2 . . . . 2 . . . . 2 . . . . 2 Power 1 | . . . . . . . . . . . . . . 1 . . . . . Propulsion 3 | . . . 2 1 . . . . . . . . . . . . . . . Utility 7 | . . . 2 1 . . . . 2 . . . . . . . . . 2 Weapon 1 | . . . . . . . . . . . . . . 1 . . . . . Parts Attached 206 | 1 10 7 44 23 . . 10 10 27 4 2 14 11 8 5 8 12 7 3 Power 18 | . 2 . 2 1 . . . 1 2 . . 2 2 3 . 1 2 . . Engine 9 | . 2 . 1 1 . . . 1 2 . . 1 1 . . . . . . Core 6 | . . . 1 . . . . . . . . . . 3 . 1 1 . . Reactor 3 | . . . . . . . . . . . . 1 1 . . . 1 . . Propulsion 66 | . 3 2 16 12 . . . 6 9 . . 6 4 1 . 1 2 4 . Treads 15 | . 3 2 6 . . . . 2 1 . . 1 . . . . . . . Leg 39 | . . . 9 1 . . . 4 8 . . 5 4 1 . 1 2 4 . Wheel . | . . . . . . . . . . . . . . . . . . . . Hover 10 | . . . . 10 . . . . . . . . . . . . . . . Flight 2 | . . . 1 1 . . . . . . . . . . . . . . . Utility 75 | . 4 2 11 7 . . 8 2 10 2 . 6 2 3 4 3 6 2 3 Device 32 | . 2 1 2 2 . . 2 1 5 1 . 3 2 3 1 1 4 1 1 Storage 6 | . 2 . 1 . . . . . . . . 1 . . 1 . 1 . . Processor 14 | . . . 3 1 . . 5 . 3 . . . . . . . . . 2 Hackware 4 | . . . . 2 . . 1 . 1 . . . . . . . . . . Protection 19 | . . 1 5 2 . . . 1 1 1 . 2 . . 2 2 1 1 . Artifact . | . . . . . . . . . . . . . . . . . . . . Weapon 47 | 1 1 3 15 3 . . 2 1 6 2 2 . 3 1 1 3 2 1 . Energy Gun 9 | . 1 . 3 . . . . . 1 1 . . . . . 2 1 . . Energy Cannon 8 | . . 2 . . . . . . 1 . . . 2 1 1 . . 1 . Ballistic Gun 18 | 1 . 1 6 3 . . 1 . 2 1 2 . 1 . . . . . . Ballistic Cannon 2 | . . . 2 . . . . . . . . . . . . . . . . Launcher 3 | . . . 2 . . . . . . . . . . . . 1 . . . Special Weapon . | . . . . . . . . . . . . . . . . . . . . Impact Weapon . | . . . . . . . . . . . . . . . . . . . . Slashing Weapon 4 | . . . 2 . . . 1 . 1 . . . . . . . . . . Piercing Weapon 2 | . . . . . . . . 1 1 . . . . . . . . . . Special Melee Weapon 1 | . . . . . . . . . . . . . . . . . 1 . . Unidentified Prototypes 21 | . . . 4 3 . . 8 . 1 . . . . . . 2 3 . . Corrupted Parts 3 | . . . . . . . . 1 . . . . . . . . 1 1 . System Corruption 18 | . . . . . . . . 5 . . . . . . . . 9 4 . Parts Lost 49 | . 2 3 3 1 . . . 2 12 . 1 6 4 . 1 . . 7 7 Power 5 | . 1 . 1 . . . . 1 1 . . . 1 . . . . . . Propulsion 19 | . . 2 2 . . . . 1 5 . 1 2 2 . . . . 2 2 Utility 17 | . . 1 . . . . . . 4 . . 3 1 . 1 . . 3 4 Weapon 8 | . 1 . . 1 . . . . 2 . . 1 . . . . . 2 1 Highest Loss Streak 7 | . 1 1 3 1 . . . 1 4 . 1 3 4 . 1 . . 5 7 To Critical Strikes 1 | . . . . . . . . . . . . . . . . . . 1 . Average Backups 12 | 6 8 12 14 14 14 14 14 13 13 12 14 12 12 12 12 12 13 12 6 Power 1 | 1 . 1 1 1 1 1 1 1 . 1 2 1 . 2 2 2 2 2 2 Propulsion 2 | 4 4 4 3 3 4 4 3 2 1 1 1 . 1 2 2 2 2 1 . Utility 5 | . 1 2 4 5 4 4 5 6 7 7 7 6 7 6 5 6 7 6 3 Weapon 3 | 1 1 4 6 3 5 4 4 4 3 3 4 4 2 1 2 2 2 2 1 Tool/Special . | . . . . . . . . . . . . . . . . . . . . Unused Backups 34 | . 10 2 5 3 . . 3 . 2 1 1 2 . 2 1 . . 1 1 Power 3 | . 1 . 1 . . . . . . . . 1 . . . . . . . Propulsion 7 | . 6 . . 1 . . . . . . . . . . . . . . . Utility 14 | . 2 1 1 1 . . 1 . 1 1 . 1 . 2 1 . . 1 1 Weapon 10 | . 1 1 3 1 . . 2 . 1 . 1 . . . . . . . . Tool/Special . | . . . . . . . . . . . . . . . . . . . . Average Slot Usage (%) 97 | . 98 92 97 99 100 100 99 99 95 99 94 94 98 99 99 99 99 99 79 Engine 4 | . 13 14 3 5 7 7 7 6 5 5 5 3 . . . . . . . Core 3 | . . . 5 1 . . . . . . . . . 9 11 10 7 11 8 Treads 6 | . 19 27 20 . . . . 1 2 . . 2 . . . . . . . Leg 19 | . 8 . 15 5 . . . 21 29 29 24 25 31 29 29 29 28 28 20 Hover 6 | . . . . 30 38 38 38 14 . . . . . . . . . . . Device 13 | . 13 1 7 8 15 15 13 7 10 11 11 11 21 24 25 17 16 16 19 Storage 8 | . 14 14 9 7 7 7 7 7 6 5 5 6 13 9 5 5 5 5 5 Processor 7 | . . . 8 . . . 7 15 20 11 11 11 7 5 5 5 5 5 14 Hackware 1 | . . . . 11 7 7 1 . . . . . . . . . . . . Protection 6 | . . 4 10 8 7 7 6 7 3 10 11 9 3 . 3 11 11 11 4 Energy Gun 4 | . 22 14 . . . . . . 1 10 10 8 4 . . . . . . Energy Cannon 5 | . . 8 1 . . . . . . . . . 7 17 16 16 15 16 4 Ballistic Gun 7 | . 5 4 11 13 15 15 14 13 10 10 11 8 . . . . . . . Peak Build Rating 123 | 6 9 16 29 60 59 59 82 79 77 86 86 102 109 120 122 121 123 121 97 Average Rating 69 | 6 8 11 26 53 58 58 68 67 69 84 83 84 100 118 117 117 119 115 92 On Entrance 68 | 6 6 9 16 29 59 58 59 74 63 73 86 83 95 109 119 112 121 119 79 Avg Prop Armor Cover (%) 4 | . . . . 2 . 3 . 5 7 . . 5 3 . . . . . . Naked Turns . | . . . . . . . . . . . . . . . . . . . . Heaviest Build 97 | 12 30 45 43 52 45 45 47 47 52 64 65 66 59 81 89 89 95 97 71 Greatest Support 127 | 20 43 46 89 55 47 55 47 67 82 80 80 127 127 124 116 116 115 115 96 Greatest Overweight (x) 2 | . . . 2 1 . 1 . 1 1 . 1 1 . . . . . 1 . Average Overweight (x) . | . . . . . . . . . . . . . . . . . . . . Largest Inventory Capacity 15 | 8 15 15 15 15 15 15 15 15 15 15 15 15 15 15 15 15 15 15 15 Average Capacity 14 | 8 10 15 15 15 15 15 15 15 15 15 15 15 15 15 15 15 15 15 15 Most Carried 15 | 6 11 15 15 15 15 15 15 15 15 15 15 15 15 15 15 15 15 15 11 Average Carried 13 | 6 8 13 14 14 14 14 14 14 14 13 14 13 14 14 14 14 14 14 8 Final Capacity 15 | 8 15 15 15 15 15 15 15 15 15 15 15 15 15 15 15 15 15 15 15 Final Carried 15 | 6 11 15 15 15 14 15 15 15 15 15 15 15 15 15 14 15 15 12 8 Class Distribution -------------------- 33% | Mutant 18% | Scavenger-Mutant 17% | Scavenger-Gunner 9% | Commander-Tank 8% | Derelict-Mutant 3% | Hacker-Mutant Dominant Class ---------------- Mutant | -10/Materials Mutant | -10/Subcaves Scavenger-Mutant | -8/Materials Hacker-Mutant | -7/Factory Mutant | -7/Lower Caves Mutant | -7/Lower Caves Mutant | -7/Zion Mutant | -6/Proximity Caves Derelict-Mutant | -6/Factory Scavenger-Gunner | -6/Lower Caves Scavenger-Gunner | -6/Lower Caves Scavenger-Mutant | -6/Data Miner Scavenger-Mutant | -5/Proximity Caves Scavenger-Gunner | -5/Factory Scavenger-Gunner | -5/Extension Commander-Tank | -5/Cetus Commander-Tank | -5/Archives Messiah-Tank | -5/Hub_04(d) Messiah-Mutant | -4/Factory Resources | -11 -10 -10 -8 -7 -7 -7 -7 -6 -6 -6 -6 -6 -5 -5 -5 -5 -5 -5 -4 ----------- Run | Yrd Mat Sub Mat Fac Low Low Zio Pro Fac Low Low Dat Pro Fac Ext Cet Arc Hub Fac Matter Collected 5150 | 200 327 71 1031 458 84 113 178 254 880 378 87 325 196 110 70 125 200 63 . Remotely . | . . . . . . . . . . . . . . . . . . . . Salvage Created 10367 | . 490 316 1557 453 . . . 284 1425 232 230 440 885 963 1218 124 661 926 163 Parts 497 | . 34 22 91 30 . . . 12 76 11 9 14 27 38 44 5 36 38 10 Haulers Intercepted 16 | . 2 . 5 2 . . . . 1 . . . . 4 1 . . 1 . Recyclers Shooed 3 | . . . 1 1 . . . . . . . . . 1 . . . . . Parts Field Recycled . | . . . . . . . . . . . . . . . . . . . . Retrieved Matter . | . . . . . . . . . . . . . . . . . . . . Parts Self-Destructed 81 | . . 15 . . 6 7 . 7 . 10 14 . 22 . . . . . . Prevented 88 | . . . . . 1 . . 6 . . . . 81 . . . . . . Parts Restored . | . . . . . . . . . . . . . . . . . . . . Kills | -11 -10 -10 -8 -7 -7 -7 -7 -6 -6 -6 -6 -6 -5 -5 -5 -5 -5 -5 -4 ------- Run | Yrd Mat Sub Mat Fac Low Low Zio Pro Fac Low Low Dat Pro Fac Ext Cet Arc Hub Fac Combat Hostiles Destroyed 138 | . 14 7 31 4 . . . 4 20 8 3 4 12 5 14 2 2 6 2 Melee 4 | . . . 2 . . . . . 1 . . . . . . . . . 1 Guns 80 | . 13 2 20 4 . . . 4 18 8 3 3 5 . . . . . . Cannons 40 | . . 5 5 . . . . . . . . . 6 4 13 2 2 3 . AOE 4 | . . . 4 . . . . . . . . . . . . . . . . Classes Destroyed 20 | . 7 1 4 1 . . . 1 2 . 1 . 2 . . . . 1 . Worker 17 | . 2 . 5 . . . . . 2 . . . . 2 . . . 6 . Builder 4 | . . . 1 . . . . . 1 . . . . . 2 . . . . Tunneler 1 | . . . . . . . . . . . . . . . . . . 1 . Hauler 16 | . 2 . 5 2 . . . . 1 . . . . 4 1 . . 1 . Recycler 7 | . . . 1 2 . . . . . . . . . 2 1 . . 1 . Mechanic 1 | . 1 . . . . . . . . . . . . . . . . . . Operator 14 | . 1 . . 2 . . . . 1 . . . . 1 . . 8 1 . Watcher 12 | . 1 . 3 . . . . . 1 . . . . 3 . . . 4 . Swarmer 31 | . 9 . 9 . . . . . 3 7 . . 1 . 2 . . . . Grunt 44 | . 5 . 13 1 . . . 2 11 . 1 . 4 1 4 . . 2 . Brawler 2 | . . . . . . . . . 1 . . . . . . . . 1 . Duelist 2 | . . . . . . . . . . . 1 . 1 . . . . . . Protector 1 | . . . . . . . . . . . . . 1 . . . . . . Sentry 20 | . . . 8 1 . . . 1 1 . 1 . . . 6 . 2 . . Specialist 1 | . . . . . . . . . . . . . 1 . . . . . . Hunter 9 | . . . 1 . . . . . 1 . . . 4 1 . . . 2 . Programmer 11 | . . . . 2 . . . 1 2 1 . . . 3 1 . . . 1 Behemoth 4 | . . . . . . . . . 1 . . . . . 1 . . 1 1 Cetus Guard 2 | . . . . . . . . . . . . . . . . 2 . . . Enhanced Grunt 4 | . . . . . . . . . . . . 4 . . . . . . . Subdweller 7 | . . 7 . . . . . . . . . . . . . . . . . Thug 1 | . . . . . . . . . . . . . . . . . 1 . . Butcher 2 | . . . . . . . . . . . . . . . . . 2 . . Guerrilla 1 | . . . . . . . . . . . . . . . . . 1 . . Mutant 2 | . . . . . . . . 1 . . . . 1 . . . . . . Best Kill Streak 11 | . 3 2 6 2 . . . 2 6 4 3 3 6 6 4 1 8 11 1 Combat Bots Only 6 | . 3 2 4 2 . . . 2 5 4 3 3 6 2 3 1 2 2 1 Max Kills in Single Turn 9 | . 3 1 3 1 . . . 1 2 2 1 1 1 2 2 1 2 9 1 Gunslinging 1 | . . . . . . . . . 1 1 . . . . . . . . . Exploded 3 | . . . 3 . . . . . . . . . . . . . . . . Melee 1 | . . . 1 . . . . . 1 . . . . . . . . . 1 Uniques/NPCs Destroyed . | . . . . . . . . . . . . . . . . . . . . Combat | -11 -10 -10 -8 -7 -7 -7 -7 -6 -6 -6 -6 -6 -5 -5 -5 -5 -5 -5 -4 -------- Run | Yrd Mat Sub Mat Fac Low Low Zio Pro Fac Low Low Dat Pro Fac Ext Cet Arc Hub Fac Hostile Shots Fired 1006 | . 92 27 176 44 1 17 . 27 204 17 13 26 118 10 51 30 1 124 28 Missed 323 | . 19 7 45 15 1 8 . 9 87 7 5 5 44 4 12 9 . 36 10 Hits 683 | . 73 20 131 29 . 9 . 18 117 10 8 21 74 6 39 21 1 88 18 Melee 5 | . . . . . . . . . 1 . . . . . . . . 4 . Projectile 678 | . 73 20 131 29 . 9 . 18 116 10 8 21 74 6 39 21 1 84 18 AOE 1 | . . . . . . . . . . . . . . . . . . 1 . Critical Strikes 30 | . . . 2 1 . . . . 2 . 1 . 6 . . 5 . 11 2 Part Disruptions 2 | . . . . . . . . . . . . 1 . . . . . 1 . Damage Taken 12691 | . 699 423 1923 333 . 71 . 365 2202 140 179 771 1230 106 619 470 21 2689 450 Core 1250 | . 148 64 67 43 . 26 . . 279 40 . . 137 . 141 24 . 213 68 Absorbed by Shields 564 | . . . . . . . . . . . . . . . 155 86 . 323 . Ignored by Resistances 573 | . . . 10 11 . . . . . . . 158 178 12 157 27 . 20 . Regen/Repaired (Parts) 237 | . . . . 18 . . . . . . . . 93 . . . . . 126 Core Remaining (%) 66 | 100 . 15 87 . . . . 90 . . . . 46 . . . . 62 . Volleys Fired 532 | . 50 27 100 32 . . . 11 81 8 7 20 56 28 32 32 19 20 9 Largest 4 | . 2 2 2 2 . . . 2 2 4 4 4 2 3 3 3 3 3 1 Hottest 285 | . 100 160 116 51 . . . 61 103 205 205 205 165 285 285 270 270 270 90 Shots Fired 1152 | . 99 47 196 63 . . . 22 162 34 26 67 104 78 88 54 48 55 9 Gun 708 | . 99 21 166 62 . . . 22 162 34 26 67 48 . . 1 . . . Cannon 440 | . . 26 27 . . . . . . . . . 56 78 88 53 48 55 9 Launcher 4 | . . . 3 1 . . . . . . . . . . . . . . . Special . | . . . . . . . . . . . . . . . . . . . . Kinetic 490 | . 29 4 162 62 . . . 22 153 16 14 28 . . . . . . . Thermal 658 | . 70 43 31 . . . . . 9 18 12 39 104 78 88 54 48 55 9 Explosive 4 | . . . 3 1 . . . . . . . . . . . . . . . Electromagnetic . | . . . . . . . . . . . . . . . . . . . . Robot Hit Streak 23 | . 8 9 23 14 . . . 4 9 3 9 7 13 15 11 9 6 6 1 Robot Miss Streak 8 | . 5 1 8 5 . . . 2 6 2 6 6 5 2 2 2 2 4 2 Penetration Max 1 | . . . . . . . . . 1 . 1 1 . . . . . . . Secondary Targets 14 | . 2 . 2 . . . . 1 5 3 1 . . . . . . . . Max Gunslinging Chain 2 | . 1 . 1 . . . . 1 1 2 1 . . . . . . . . Shots Hit Robots 727 | . 60 30 157 38 . . . 17 100 11 17 42 70 46 54 19 32 29 5 Core Hits 390 | . 27 10 92 17 . . . 7 55 8 7 26 30 19 28 10 21 31 2 Critical Kills 14 | . . . . 1 . . . 2 7 . 1 1 . 1 . . . 1 . Critical Parts Destroyed 12 | . . . . . . . . 1 8 1 . 2 . . . . . . . Critical Strikes 41 | . 6 . 4 1 . . . 4 15 1 3 4 1 1 . . . 1 . Burn 11 | . 6 . 2 . . . . . . . 1 1 1 . . . . . . Meltdown 2 | . . . . . . . . . . . . . . 1 . . . 1 . Destroy 25 | . . . . 1 . . . 3 15 1 2 3 . . . . . . . Sever 2 | . . . 2 . . . . . . . . . . . . . . . . Impale 1 | . . . . . . . . 1 . . . . . . . . . . . Melee Attacks 50 | . . . 16 . . . 1 7 4 . . 12 . . 2 . 3 1 4 Impact . | . . . . . . . . . . . . . . . . . . . . Slashing 32 | . . . 16 . . . 1 . 3 . . 12 . . . . . . . Piercing 15 | . . . . . . . . 7 1 . . . . . 2 . . 1 4 Sneak Attacks 5 | . . . 1 . . . . . 1 . . . . . . . 3 . . Combat Hostiles 1 | . . . . . . . . . 1 . . . . . . . . . . Follow-up Attacks 3 | . . . 3 . . . . . . . . . . . . . . . . Damage Inflicted 20626 | . 1094 573 3138 611 . . . 468 2264 220 235 684 2018 1896 2566 816 1218 2601 224 Guns 7999 | . 813 223 2028 611 . . . 302 2087 220 235 684 796 . . . . . . Cannons 9481 | . . 350 424 . . . . . . . . . 1222 1821 2535 816 1135 1054 124 Explosions 2092 | . 237 . 280 . . . . . . . . . . . . . 83 1492 . Melee 698 | . . . 335 . . . . 166 112 . . . . . . . . . 85 Ramming 356 | . 44 . 71 . . . . . 65 . . . . 75 31 . . 55 15 Kinetic 5731 | . 247 39 2058 611 . . . 302 2001 44 114 315 . . . . . . . Thermal 11832 | . 566 534 394 . . . . . 86 176 121 369 2018 1821 2535 816 1218 1054 124 Explosive 517 | . 237 . 280 . . . . . . . . . . . . . . . . Electromagnetic 1492 | . . . . . . . . . . . . . . . . . . 1492 . Impact . | . . . . . . . . . . . . . . . . . . . . Slashing 447 | . . . 335 . . . . . 112 . . . . . . . . . . Piercing 251 | . . . . . . . . 166 . . . . . . . . . . 85 Highest Corruption 34 | . . . . 4 2 . . 6 3 4 4 4 4 1 1 1 10 34 3 Average Corruption 2 | . . . . 1 1 . . 1 2 3 4 4 4 1 1 1 4 5 2 Corruption Purged 15 | . . . . 3 2 . . . . . . . . . . . 10 . . Corruption Blocked . | . . . . . . . . . . . . . . . . . . . . Effects 106 | . . . . 2 . . . 4 19 8 16 8 23 1 9 5 7 3 1 Message Errors 18 | . . . . . . . . . 1 1 2 3 6 . 3 1 1 . . Matter Fused 22 | . . . . . . . . . 7 1 3 1 5 . 1 1 3 . . Heat Flow Errors 21 | . . . . 1 . . . 2 5 1 3 . 4 1 1 2 1 . . Energy Discharges 15 | . . . . . . . . . 3 . 6 1 3 . 1 . . . 1 Parts Rejected 1 | . . . . . . . . . . . . . . . . 1 . . . Parts Fused 3 | . . . . . . . . . 1 . 1 . 1 . . . . . . Data Loss (minor) 13 | . . . . . . . . 2 . 2 1 3 2 . 1 . . 2 . Data Loss (major) 2 | . . . . . . . . . . 1 . . 1 . . . . . . Misfires 8 | . . . . . . . . . 2 2 . . . . 2 . 2 . . Alerts 1 | . . . . 1 . . . . . . . . . . . . . . . Misdirections 1 | . . . . . . . . . . . . . . . . . . 1 . Weapon Failures 1 | . . . . . . . . . . . . . 1 . . . . . . Overload Shots 1 | . . . . . . . . . . . . . . . . 1 . . . Overflow Damage 513 | . 34 . 16 . . . . . 24 . . . 30 117 76 . 81 112 23 Projectiles 316 | . . . 2 . . . . . . . . . 30 115 76 . 43 27 23 Explosions 157 | . 34 . . . . . . . . . . . . . . . 38 85 . Melee 40 | . . . 14 . . . . . 24 . . . . 2 . . . . . Knockbacks 8 | . 1 . 6 . . . . . . . . . . 1 . . . . . Impact 2 | . 1 . . . . . . . . . . . . 1 . . . . . Kinetic 6 | . . . 6 . . . . . . . . . . . . . . . . Secondary . | . . . . . . . . . . . . . . . . . . . . Self-Inflicted Damage 191 | . . . 93 . . . . . . . . . . . . . . 98 . Shots 4 | . . . 3 . . . . . . . . . . . . . . 1 . Rammed 13 | . 5 . 8 . . . . . . . . . . . . . . . . Targets Rammed 33 | . 8 . 13 . . . . . 3 . . . . 5 1 . . 2 1 Kicked 17 | . 2 . 3 . . . . . 3 . . . . 5 1 . . 2 1 Crushed 3 | . 1 . 2 . . . . . . . . . . . . . . . . Highest Temperature 350 | . 90 108 83 332 . . 350 216 239 66 90 205 222 322 271 251 150 66 . Average Temperature 61 | . 27 28 22 80 . . 158 68 48 33 60 96 37 72 80 101 62 24 . Received Heat Transfer 2515 | . 180 81 684 51 . 12 . 111 633 . 18 . 330 18 158 22 . 208 9 Effects 3 | . . . . 2 . . . . . . . . . . . 1 . . . Shutdowns 1 | . . . . 1 . . . . . . . . . . . . . . . Energy Bleed 2 | . . . . 1 . . . . . . . . . . . 1 . . . Siege Activations . | . . . . . . . . . . . . . . . . . . . . Martial Activations . | . . . . . . . . . . . . . . . . . . . . Shielding Activations . | . . . . . . . . . . . . . . . . . . . . Robots Disrupted 1 | . . . . . . . . . . . . . . 1 . . . . . Combat Hostiles . | . . . . . . . . . . . . . . . . . . . . Robots Corrupted 4 | . . . . . . . . . . . . . . 1 . . . 3 . Combat Hostiles 2 | . . . . . . . . . . . . . . . . . . 2 . Parts Fried 11 | . . . . . . . . . . . . . . 3 . . . 8 . Impact Corruptions 3 | . . . . . . . . . 1 . . . . 1 . . . 1 . Robots Melted 5 | . 1 . . . . . . . . . . 1 1 1 . . . 1 . Combat Hostiles 4 | . 1 . . . . . . . . . . 1 1 1 . . . . . Parts Melted 38 | . 4 4 1 . . . . . . 2 2 10 6 . 5 . 1 3 . Heat Transferred 14438 | . 2109 1036 829 . . . . . 200 348 361 1244 2703 1110 1388 622 1305 1033 150 Parts Sabotaged . | . . . . . . . . . . . . . . . . . . . . Parts Stolen . | . . . . . . . . . . . . . . . . . . . . Parts Stripped . | . . . . . . . . . . . . . . . . . . . . Power Chain Reactions 1 | . . . . . . . . . . . . . . . . . 1 . . Alert | -11 -10 -10 -8 -7 -7 -7 -7 -6 -6 -6 -6 -6 -5 -5 -5 -5 -5 -5 -4 ------- Run | Yrd Mat Sub Mat Fac Low Low Zio Pro Fac Low Low Dat Pro Fac Ext Cet Arc Hub Fac Maximum Alert Level 5 | . . . 2 1 . . . . 1 . . . . . 3 2 1 5 3 Low Security (%) 57 | 100 100 . 43 76 . . . . 85 . . . . 100 16 . 33 18 . Level 1 19 | . . . 27 23 . . . . 14 . . . . . 27 . 66 17 . Level 2 14 | . . . 29 . . . . . . . . . . . 19 100 . 9 12 Level 3 7 | . . . . . . . . . . . . . . . 36 . . 18 87 Level 4 . | . . . . . . . . . . . . . . . . . . 13 . Level 5 . | . . . . . . . . . . . . . . . . . . 21 . High Security . | . . . . . . . . . . . . . . . . . . . . Max Security . | . . . . . . . . . . . . . . . . . . . . Peak Influence 1850 | . 152 . 639 286 . . . . 274 . . . . 169 883 610 385 1850 833 Initial 833 | . . . . 286 . . . . 24 . . . . . 72 456 204 32 833 Average 268 | . 67 . 293 171 . . . . 126 . . . . 27 519 542 245 853 755 Influence Increases 8582 | . 455 15 1174 344 . 60 . 199 862 239 211 . 271 344 1177 432 305 2418 76 Destroy 0b10 Robot/C 3480 | . 280 . 620 80 . . . 120 400 160 160 . 220 120 460 140 80 600 40 Destroy 0b10 Robot/NC 440 | . 35 . 75 30 . . . . 30 . . . 10 60 45 10 40 105 . Destroy Leader 650 | . 66 . 166 34 . . . 30 84 30 . . 10 44 34 . . 132 20 Allied During Kill 1563 | . . . . . . . . 34 3 49 21 . 16 18 474 150 120 678 . Trap Triggered on 0b10 10 | . . . . . . . . . 10 . . . . . . . . . . Successful Hack 217 | . 4 . 42 106 . . . . 2 . . . . 36 21 . . . 6 Disable Machine 660 | . 15 . 15 30 . . . . 45 . . . . 30 105 30 45 345 . Anti-Garrison Action 150 | . . . . . . . . . . . . . . . . . . 150 . Destroy Structure 602 | . 10 . 31 4 . . . . 3 . . . . 36 38 102 20 348 10 Partial Spotted 30 | . . . 15 15 . . . . . . . . . . . . . . . Lose Combat Pursuer 780 | . 45 15 210 45 . 60 . 15 285 . 30 . 15 . . . . 60 . Influence Decreases 7913 | . 401 69 544 858 116 45 15 160 775 261 315 . 271 195 509 739 722 811 1107 Entered New Map 2184 | . . 26 . 344 44 . 15 . 15 47 21 . . . 77 361 306 61 867 Time Decay 4372 | . 381 43 504 494 72 45 . 123 490 214 244 . 171 185 422 278 356 180 170 Search Patrol Dispatched 100 | . . . . . . . . . 100 . . . . . . . . . . Lost Part 390 | . 20 . 30 10 . . . 10 120 . 10 . 40 . 10 . . 70 70 Lost Ally 867 | . . . 10 10 . . . 27 50 . 40 . 60 10 . 100 60 500 . Squads Dispatched 41 | . 2 . 6 6 . . . . 10 . 1 . . 6 . . . 9 1 Investigation 9 | . . . 3 1 . . . . 2 . . . . 3 . . . . . Extermination 10 | . . . . 3 . . . . 4 . . . . 2 . . . . 1 Reinforcement 14 | . 2 . 3 2 . . . . 3 . . . . 1 . . . 3 . Assault 5 | . . . . . . . . . . . 1 . . . . . . 4 . Garrison 3 | . . . . . . . . . 1 . . . . . . . . 2 . Intercept . | . . . . . . . . . . . . . . . . . . . . Searches Triggered 1 | . . . . . . . . . 1 . . . . . . . . . . Construction Impeded . | . . . . . . . . . . . . . . . . . . . . Haulers Reinforced 5 | . . . . 1 . . . . 1 . . . . 1 . . . 2 . Active Scanning Responses . | . . . . . . . . . . . . . . . . . . . . Cargo Convoy Interrupts . | . . . . . . . . . . . . . . . . . . . . Stealth | -11 -10 -10 -8 -7 -7 -7 -7 -6 -6 -6 -6 -6 -5 -5 -5 -5 -5 -5 -4 --------- Run | Yrd Mat Sub Mat Fac Low Low Zio Pro Fac Low Low Dat Pro Fac Ext Cet Arc Hub Fac Distress Signals 21 | . 2 . 6 1 . . . . 5 . . . . . . 2 . 3 2 Communications Jammed 7 | . . . . . . . . . . . . . . 2 2 . . . 3 Distress Signals 7 | . . . . . . . . . . . . . . 2 2 . . . 3 Times Spotted 338 | . 27 9 64 12 3 9 . 7 51 8 8 5 36 12 23 10 10 39 5 Peak Tracking Total 17 | . 5 3 7 4 3 5 . 3 9 4 9 3 15 3 4 5 2 17 4 Tactical Retreats 35 | . 2 1 8 2 . 2 . 1 13 . 2 . 1 . . . . 3 . Traps | -11 -10 -10 -8 -7 -7 -7 -7 -6 -6 -6 -6 -6 -5 -5 -5 -5 -5 -5 -4 ------- Run | Yrd Mat Sub Mat Fac Low Low Zio Pro Fac Low Low Dat Pro Fac Ext Cet Arc Hub Fac Traps Triggered 10 | . . . 1 1 . . . . 3 . . . . 2 2 . . 1 . Indirectly . | . . . . . . . . . . . . . . . . . . . . Trap Hack Attempts . | . . . . . . . . . . . . . . . . . . . . Triggered . | . . . . . . . . . . . . . . . . . . . . Disarmed . | . . . . . . . . . . . . . . . . . . . . Reprogrammed 6 | . . . . 6 . . . . . . . . . . . . . . . Reused 1 | . . . . . . . . . 1 . . . . . . . . . . Traps Extracted . | . . . . . . . . . . . . . . . . . . . . Installed 2 | . . . . . . . . . 2 . . . . . . . . . . Triggered 1 | . . . . . . . . . 1 . . . . . . . . . . Machines | -11 -10 -10 -8 -7 -7 -7 -7 -6 -6 -6 -6 -6 -5 -5 -5 -5 -5 -5 -4 ---------- Run | Yrd Mat Sub Mat Fac Low Low Zio Pro Fac Low Low Dat Pro Fac Ext Cet Arc Hub Fac Machines Disabled 47 | . 1 1 1 2 . . . . 3 . . . . 2 8 2 3 24 . Max in Single Turn 20 | . 1 1 1 1 . . . . 1 . . . . 1 2 1 1 20 . Garrison Access 3 | . . . . 1 . . . . . . . . . 1 . . . 1 . Network Hub 1 | . . . . . . . . . . . . . . . . . . 1 . Machines Repaired . | . . . . . . . . . . . . . . . . . . . . Machines Dismantled . | . . . . . . . . . . . . . . . . . . . . Machines Sabotaged . | . . . . . . . . . . . . . . . . . . . . Overloaded Fab Kills . | . . . . . . . . . . . . . . . . . . . . Hacking | -11 -10 -10 -8 -7 -7 -7 -7 -6 -6 -6 -6 -6 -5 -5 -5 -5 -5 -5 -4 --------- Run | Yrd Mat Sub Mat Fac Low Low Zio Pro Fac Low Low Dat Pro Fac Ext Cet Arc Hub Fac Machines Accessed 49 | . 3 2 7 13 . . . . 5 . . 4 2 6 4 1 . . 2 Terminals 19 | . 2 . 5 7 . . . . . . . . . . 4 1 . . . Fabricators 4 | . . . . . . . . . 2 . . . . 1 . . . . 1 Repair Stations 5 | . . . 1 1 . . . . . . . . 1 1 . . . . 1 Recycling Units 7 | . 1 . . 2 . . . . 2 . . . 1 1 . . . . . Scanalyzers 6 | . . . 1 2 . . . . 1 . . . . 2 . . . . . Garrison Access 2 | . . . . 1 . . . . . . . . . 1 . . . . . Total Hacks 185 | . 8 12 22 73 . . . . 10 . . 31 3 14 7 1 . . 4 Successful 132 | . 4 12 12 53 . . . . 6 . . 31 2 7 3 . . . 2 Failed 50 | . 4 . 10 19 . . . . 3 . . . 1 6 4 1 . . 2 Catastrophic 7 | . . . 2 . . . . . . . . . 1 1 1 1 . . 1 Database Lockouts 3 | . . . . 1 . . . . 1 . . . . 1 . . . . . Manual 91 | . 5 . 14 13 . . . . 24 . . . . 5 11 1 . 16 2 Terminals 60 | . 6 . 17 29 . . . . . . . . . . 7 1 . . . Fabricators 9 | . . . . . . . . . 4 . . . . 3 . . . . 2 Repair Stations 12 | . . . 1 5 . . . . . . . . 2 2 . . . . 2 Recycling Units 14 | . 2 . . 5 . . . . 3 . . . 1 3 . . . . . Scanalyzers 44 | . . . 4 33 . . . . 3 . . . . 4 . . . . . Garrison Access 3 | . . . . 1 . . . . . . . . . 2 . . . . . Terminal Hacks 59 | . 1 12 2 10 . . . . . . . 31 . . 3 . . . . Record 22 | . . 11 . . . . . . . . . 11 . . . . . . . Part Schematic 11 | . . . . . . . . . . . . 11 . . . . . . . Robot Schematic 6 | . . . . . . . . . . . . 6 . . . . . . . Robot Analysis 1 | . . . . 1 . . . . . . . . . . . . . . . Prototype ID Bank 4 | . . . . 1 . . . . . . . 3 . . . . . . . Open Door 3 | . . . . . . . . . . . . . . . 3 . . . . Branch Access Points 2 | . . . 1 1 . . . . . . . . . . . . . . . Emergency Access Points 1 | . 1 . . . . . . . . . . . . . . . . . . Terminal Index 2 | . . . 1 1 . . . . . . . . . . . . . . . Scanalyzer Index 1 | . . . . 1 . . . . . . . . . . . . . . . Locate Traps 2 | . . . . 2 . . . . . . . . . . . . . . . Reprogram Traps 1 | . . . . 1 . . . . . . . . . . . . . . . Hauler Manifests 1 | . . . . 1 . . . . . . . . . . . . . . . Zone Layout 1 | . . . . 1 . . . . . . . . . . . . . . . Proto ID Catalog 1 | . . 1 . . . . . . . . . . . . . . . . . Fabricator Hacks 4 | . . . . . . . . . 3 . . . . 1 . . . . . Load Schematic 3 | . . . . . . . . . 2 . . . . 1 . . . . . Build 1 | . . . . . . . . . 1 . . . . . . . . . . Repair Station Hacks 7 | . . . . 3 . . . . . . . . 1 1 . . . . 2 Scan Component 5 | . . . . 2 . . . . . . . . 1 1 . . . . 1 Repair 2 | . . . . 1 . . . . . . . . . . . . . . 1 Recycling Unit Hacks 6 | . 1 . . 2 . . . . 1 . . . 1 1 . . . . . Retrieve Components 6 | . 1 . . 2 . . . . 1 . . . 1 1 . . . . . Scanalyzer 38 | . . . 4 30 . . . . 1 . . . . 3 . . . . . Insert Component 12 | . . . . 12 . . . . . . . . . . . . . . . Analyze 15 | . . . . 15 . . . . . . . . . . . . . . . Retrieve Study 11 | . . . 4 3 . . . . 1 . . . . 3 . . . . . Garrison Access Hacks 2 | . . . . 1 . . . . . . . . . 1 . . . . . Seal Access 2 | . . . . 1 . . . . . . . . . 1 . . . . . Unauthorized Hacks 16 | . 2 . 6 7 . . . . 1 . . . . . . . . . . Terminals 15 | . 2 . 6 7 . . . . . . . . . . . . . . . Assimilate 3 | . . . 2 1 . . . . . . . . . . . . . . . Botnet 3 | . 1 . 1 1 . . . . . . . . . . . . . . . Skim 9 | . 1 . 3 5 . . . . . . . . . . . . . . . Fabricators 1 | . . . . . . . . . 1 . . . . . . . . . . Recompile 1 | . . . . . . . . . 1 . . . . . . . . . . Repair Stations . | . . . . . . . . . . . . . . . . . . . . Recycling Units . | . . . . . . . . . . . . . . . . . . . . Scanalyzers . | . . . . . . . . . . . . . . . . . . . . Garrison Access . | . . . . . . . . . . . . . . . . . . . . Data Cores Recovered 1 | . . . . 1 . . . . . . . . . . . . . . . Used . | . . . . . . . . . . . . . . . . . . . . Hacking Detections 33 | . 3 . 6 10 . . . . 3 . . . 1 6 1 1 . . 2 Full Trace Events 6 | . . . 2 1 . . . . 1 . . . . 2 . . . . . Feedback Events . | . . . . . . . . . . . . . . . . . . . . Feedback Blocked . | . . . . . . . . . . . . . . . . . . . . Robot Schematics Acquired 14 | . . . . . . . 4 . 4 . . 6 . . . . . . . Robots Built 2 | . . . . . . . . . 2 . . . . . . . . . . Authchips 1 | . . . . . . . . . 1 . . . . . . . . . . Time 68 | . . . . . . . . . 68 . . . . . . . . . . Total Robot Build Rating 16 | . . . . . . . . . 16 . . . . . . . . . . Part Schematics Acquired 67 | . . . . 12 . . 15 . 9 . . 11 . . 9 . . 11 . Parts Built . | . . . . . . . . . . . . . . . . . . . . Authchips . | . . . . . . . . . . . . . . . . . . . . Time . | . . . . . . . . . . . . . . . . . . . . Total Part Build Rating . | . . . . . . . . . . . . . . . . . . . . Part Studies Acquired 11 | . . . 4 3 . . . . 1 . . . . 3 . . . . . Parts Repaired 2 | . . . . 1 . . . . . . . . . . . . . . 1 Time 115 | . . . . 26 . . . . . . . . . . . . . . 89 Parts Recycled . | . . . . . . . . . . . . . . . . . . . . Recycled Matter . | . . . . . . . . . . . . . . . . . . . . Retrieved Matter . | . . . . . . . . . . . . . . . . . . . . Retrieved Components 13 | . 2 . . 5 . . . . 3 . . . 2 1 . . . . . Parts Scanalyzed 12 | . . . . 12 . . . . . . . . . . . . . . . Part Schematics Acquired 12 | . . . . 12 . . . . . . . . . . . . . . . Parts Damaged . | . . . . . . . . . . . . . . . . . . . . Bothacking | -11 -10 -10 -8 -7 -7 -7 -7 -6 -6 -6 -6 -6 -5 -5 -5 -5 -5 -5 -4 ------------ Run | Yrd Mat Sub Mat Fac Low Low Zio Pro Fac Low Low Dat Pro Fac Ext Cet Arc Hub Fac Used RIF Installer . | . . . . . . . . . . . . . . . . . . . . Robots Hacked 1 | . . . . . . . . . . . . . . . . . 1 . . Non-combat 1 | . . . . . . . . . . . . . . . . . 1 . . Combat . | . . . . . . . . . . . . . . . . . . . . Robot Hacks Applied 3 | . . . . . . . . . . . . . . . . . 3 . . parse_system 1 | . . . . . . . . . . . . . . . . . 1 . . check_alert 2 | . . . . . . . . . . . . . . . . . 2 . . Relay Couplers Released 2 | . . . . . . . . . . . . . . . . . . 2 . Machine Destruction 2 | . . . . . . . . . . . . . . . . . . 2 . Fabnet Peak Effective % . | . . . . . . . . . . . . . . . . . . . . Robots Rewired 21 | . . . . . . . . . . . 2 . 6 . 13 . . . . Allies Hacked . | . . . . . . . . . . . . . . . . . . . . Hacks Repelled . | . . . . . . . . . . . . . . . . . . . . Allies | -11 -10 -10 -8 -7 -7 -7 -7 -6 -6 -6 -6 -6 -5 -5 -5 -5 -5 -5 -4 -------- Run | Yrd Mat Sub Mat Fac Low Low Zio Pro Fac Low Low Dat Pro Fac Ext Cet Arc Hub Fac Total Allies 61 | . . . 1 1 . . 4 . 3 . 2 . 7 2 30 5 . 6 . Largest Group 35 | . . . 1 1 . . 4 4 2 2 2 2 6 2 31 35 31 27 . Highest-Rated Group 1653 | . . . 10 26 . . 155 155 100 100 100 62 132 170 1269 1653 1463 1401 . Highest-Rated Ally 159 | . . . 10 26 . . 40 40 50 50 50 32 30 85 159 159 159 96 . Zionite Dispatches 10 | . . . . . . . . . 2 . . . . 2 3 . . 3 . Heavy 6 | . . . . . . . . . . . . . . 1 2 . . 3 . Recon 2 | . . . . . . . . . 1 . . . . 1 . . . . . Fire 1 | . . . . . . . . . . . . . . . 1 . . . . Trap Resupply 1 | . . . . . . . . . 1 . . . . . . . . . . Total Orders 5 | . . . . . . . 1 . 3 . . . . 1 . . . . . DROP 1 | . . . . . . . . . 1 . . . . . . . . . . EXPLORE 2 | . . . . . . . . . 1 . . . . 1 . . . . . RETURN 2 | . . . . . . . 1 . 1 . . . . . . . . . . Ally Attacks 363 | . . . . . . . . 35 1 4 11 1 3 5 62 71 19 151 . Total Damage 12191 | . . . . . . . . 575 11 65 463 32 40 356 2005 2478 870 5296 . Kills 65 | . . . . . . . . 2 . . 5 . . 1 13 7 2 35 . Allies Corrupted 6 | . . . . . . . . . . . . . . 1 . . . 5 . Allies Melted . | . . . . . . . . . . . . . . . . . . . . Intel | -11 -10 -10 -8 -7 -7 -7 -7 -6 -6 -6 -6 -6 -5 -5 -5 -5 -5 -5 -4 ------- Run | Yrd Mat Sub Mat Fac Low Low Zio Pro Fac Low Low Dat Pro Fac Ext Cet Arc Hub Fac Active Infowar (turns) 6350 | . . 27 1451 24 235 164 748 816 1202 . . . . 736 635 . . . 312 Optics 29 | . . 27 . . . . 2 . . . . . . . . . . . . Sensors 4947 | . . . 1451 24 235 164 746 816 1202 . . . . . . . . . 309 Jamming 1681 | . . . . . . . . . . . . . . 736 635 . . . 310 Robot Analysis Total 154 | . . . . 1 . . . . . . . 153 . . . . . . . Derelict Logs Recovered 11 | . . 1 . . 2 1 1 1 . 2 1 . 2 . . . . . . Drone Launches 7 | . . . . . . . 1 . 3 . . . . 3 . . . . . Drone Recoveries 4 | . . . . . . . 1 . 1 . . . . 2 . . . . . Zionite Intel Received 5 | . . . . . . . . . 3 . . . . . 1 . . 1 . Prototype Stockpiles 1 | . . . . . . . . . 1 . . . . . . . . . . Prototype Schematics 3 | . . . . . . . . . 1 . . . . . 1 . . 1 . Unaware Schematics 1 | . . . . . . . . . 1 . . . . . . . . . . Exploration | -11 -10 -10 -8 -7 -7 -7 -7 -6 -6 -6 -6 -6 -5 -5 -5 -5 -5 -5 -4 ------------- Run | Yrd Mat Sub Mat Fac Low Low Zio Pro Fac Low Low Dat Pro Fac Ext Cet Arc Hub Fac Turns Passed 15821 | 2 1273 1001 1969 1301 288 164 758 816 1648 449 565 438 1066 917 1030 612 815 365 344 Spaces Moved 11535 | 1 735 509 1084 1251 614 429 1256 609 1096 382 325 236 663 683 710 285 211 260 196 Core . | . . . . . . . . . . . . . . . . . . . . Treads 1496 | . 484 509 501 . . . . 2 . . . . . . . . . . . Legs 6623 | 1 251 . 583 155 . . . 586 1096 382 325 236 663 683 710 285 211 260 196 Wheels . | . . . . . . . . . . . . . . . . . . . . Hover 3416 | . . . . 1096 614 429 1256 21 . . . . . . . . . . . Flight . | . . . . . . . . . . . . . . . . . . . . Fastest Speed 28 | 120 120 160 105 38 38 28 38 33 108 108 108 105 114 105 105 103 103 105 111 Average Speed 98 | 120 146 160 131 53 38 37 38 118 112 108 156 125 115 111 105 103 103 107 111 Slowest Speed 245 | 120 160 160 245 175 38 98 38 240 182 108 175 175 120 114 105 105 105 192 111 Overloaded Moves 39 | . . . . . . 37 . 2 . . . . . . . . . . . Propulsion Burnouts . | . . . . . . . . . . . . . . . . . . . . Robots Hopped . | . . . . . . . . . . . . . . . . . . . . Potential Cave-ins . | . . . . . . . . . . . . . . . . . . . . Cave-ins Triggered . | . . . . . . . . . . . . . . . . . . . . Exploration Rate (%) 52 | 1 92 30 62 26 75 64 90 63 25 46 50 80 59 23 78 67 79 42 5 Regions Visited 19 Branch Regions 13 Pre-discovered Areas 34 | . . . . 2 . . 2 . . 1 . 29 . . . . . . . Known Exits Taken 9 | . . . 1 1 1 . . 1 1 1 . . 1 1 . . 1 . . Unknown Exits Taken 10 | 1 1 1 . . . 1 1 . . . 1 1 . . 1 1 . 1 . Scrap Searched 15 | . . 2 . . 1 2 4 2 . 3 1 . . . . . . . . Spaces Dug 27 | . . . . . . . . . . . . . . 2 . 18 . 4 3 Terrain Destroyed 302 | . 8 1 29 5 . . . . 4 . . . 3 14 11 23 12 186 6 Melee . | . . . . . . . . . . . . . . . . . . . . Projectile 93 | . . 1 3 1 . . . . 4 . . . 3 14 11 23 8 19 6 AOE 209 | . 8 . 26 4 . . . . . . . . . . . . 4 167 . Terrain Rammed . | . . . . . . . . . . . . . . . . . . . . Walls Destroyed . | . . . . . . . . . . . . . . . . . . . . Machines Disabled . | . . . . . . . . . . . . . . . . . . . . Actions | -11 -10 -10 -8 -7 -7 -7 -7 -6 -6 -6 -6 -6 -5 -5 -5 -5 -5 -5 -4 --------- Run | Yrd Mat Sub Mat Fac Low Low Zio Pro Fac Low Low Dat Pro Fac Ext Cet Arc Hub Fac Total 14920 | 1 834 649 1409 1819 668 433 1538 666 1343 400 366 313 862 776 919 553 766 298 307 Wait 1894 | . 4 94 78 465 54 . 238 16 85 1 . 1 5 15 35 210 503 1 89 Move 11516 | . 734 508 1083 1250 613 428 1255 608 1095 381 324 235 662 682 709 284 210 259 196 Hop . | . . . . . . . . . . . . . . . . . . . . Pick Up 148 | . 17 9 23 13 . 3 7 5 17 4 1 13 13 10 3 5 . 3 2 Fast Attach 92 | . . . 24 13 . . 13 2 9 . 2 3 2 3 2 5 13 1 . Attach 76 | . 3 4 5 8 1 . . 2 14 3 . 7 10 5 . 3 . 5 6 Detach 40 | . . 1 5 8 . . 5 2 3 1 . 3 5 2 . 3 2 . . Swap 102 | 1 7 3 21 12 . . 3 7 12 1 1 10 4 3 6 3 4 4 . Drop 179 | . 11 3 44 18 . 2 16 6 15 1 4 9 11 11 6 8 12 2 . Fire 532 | . 50 27 100 32 . . . 11 81 8 7 20 56 28 32 32 19 20 9 Melee 47 | . . . 13 . . . 1 7 4 . . 12 . . 2 . 3 1 4 Ram . | . . . . . . . . . . . . . . . . . . . . Kick 17 | . 2 . 3 . . . . . 3 . . . . 5 1 . . 2 1 Crush 16 | . 6 . 10 . . . . . . . . . . . . . . . . Escape Stasis 5 | . . . . . . . . . 3 . . . . . 2 . . . . Rewire 254 | . . . . . . . . . . . 27 . 94 12 121 . . . . Trap 2 | . . . . . . . . . 2 . . . . . . . . . . Miscellaneous . | . . . . . . . . . . . . . . . . . . . . Route ------- -11/Scrapyard -10/Materials (discovered 5 exits: [*Mat x3] / [*Min] / *Sub) -10/Subcaves (discovered 2 exits: *Mat / Rec) -8/Materials (discovered 2 exits: *Fac x2) -7/Factory (discovered 7 exits: *Fac x4 / Sto / *Low x2) -7/Lower Caves -7/Lower Caves -7/Zion -6/Proximity Caves -6/Factory (discovered 4 exits: *Fac x2 / *Low x2) -6/Lower Caves -6/Lower Caves -6/Data Miner -5/Proximity Caves -5/Factory (discovered 5 exits: *Fac / *Upp x2 / *Ext x2) -5/Extension (discovered 2 exits: *Fac / *Cet) -5/Cetus (discovered 2 exits: *Fac / [*Arc]) -5/Archives (discovered 2 exits: *Hub x2) -5/Hub_04(d) (discovered 2 exits: *Fac x2) -4/Factory History --------- Turn | Location | Event 3 | -11/Scrapyard | Discovered new exit (range 0) 3 | -11/Scrapyard | Entered Materials 254 | -10/Materials | Discovered new exit (range 7) 313 | -10/Materials | Build established: Mutant 559 | -10/Materials | Discovered new exit (range 7) 953 | -10/Materials | Discovered new exit (range 8) 999 | -10/Materials | Discovered new exit (range 9) 1187 | -10/Materials | Core integrity fell below 50% 1264 | -10/Materials | Discovered new exit (range 8) 1276 | -10/Materials | Entered Subcaves 1277 | -10/Subcaves | Approached by a straggling Scientist 1281 | -10/Subcaves | Learned location of 1 exit from Materials 1703 | -10/Subcaves | Shifting Twisted Machinery released Sub. Shrapnel Launcher 1894 | -10/Subcaves | Visited Clippyterm 1899 | -10/Subcaves | Identified exit to Recycling 1899 | -10/Subcaves | Learned Factory fabricator intel 2017 | -10/Subcaves | Visited 4L-MR0's lab 2031 | -10/Subcaves | Found Gun Armor 2182 | -10/Subcaves | Discovered new exit (range 14) 2232 | -10/Subcaves | Core integrity fell below 20% 2277 | -10/Subcaves | Entered Materials 2277 | -8/Materials | Evolved 4 slots: Propulsion x2, Utility x2 2278 | -8/Materials | Identified exit to Factory 2773 | -8/Materials | Lost 3 parts (1p2n) 2916 | -8/Materials | Discovered exit to Factory (range 5) 3059 | -8/Materials | Build established: Scavenger-Mutant 4207 | -8/Materials | Build established: Scavenger-Gladiator 4246 | -8/Materials | Entered Factory 4246 | -7/Factory | Evolved 2 slots: Propulsion x1, Utility x1 4247 | -7/Factory | Loaded intel: 6 fabricator locations 4571 | -7/Factory | Identified exit to Storage 4571 | -7/Factory | Identified exit to Lower Caves 4700 | -7/Factory | Build established: Hacker-Mutant 4720 | -7/Factory | Repaired Broken Imp. Sensor Array 4992 | -7/Factory | Identified exit to Factory 5037 | -7/Factory | Central database locked down 5059 | -7/Factory | Learned 2 Proximity Caves zone layouts 5118 | -7/Factory | Learned location of 2 exits from Archives 5241 | -7/Factory | Learned location of Extension (-5) 5329 | -7/Factory | Build established: Mutant 5337 | -7/Factory | Learned location of 2 exits from Factory 5389 | -7/Factory | Learned location of Lower Caves (-6) 5547 | -7/Factory | Entered Lower Caves 5548 | -7/Lower Caves | Identified exit to Lower Caves 5614 | -7/Lower Caves | Encountered a Warlord checkpoint 5631 | -7/Lower Caves | Learned Factory terminal intel 5704 | -7/Lower Caves | Learned 8 Factory zone layouts 5835 | -7/Lower Caves | Entered another Lower Caves area 5933 | -7/Lower Caves | Attracted the attention of an 0b10 checkpoint 5947 | -7/Lower Caves | Spotted B-75 Beast 5991 | -7/Lower Caves | Learned location of 1 exit from Proximity Caves 5992 | -7/Lower Caves | Discovered new exit (range 9) 5999 | -7/Lower Caves | Entered Zion 6014 | -7/Zion | Acquired unknown access codes intercepted by a Zionite 6018 | -7/Zion | Discovered new exit (range 12) 6065 | -7/Zion | Learned Factory interactive machine intel 6090 | -7/Zion | Found CR-A16's Pointy Stick 6137 | -7/Zion | Given the Hacking Drone Bay 6138 | -7/Zion | Found Prototype Device 6138 | -7/Zion | Identified Hacking Drone Bay 6147 | -7/Zion | Learned location of Warlord (-4) 6150 | -7/Zion | Found Prototype Device 6150 | -7/Zion | Identified Bomb Factory No. 2 6268 | -7/Zion | Learned location of Armory (-4) 6368 | -7/Zion | Found Prototype Hackware 6368 | -7/Zion | Identified Exp. System Shield 6370 | -7/Zion | Found Prototype Processor 6370 | -7/Zion | Identified Exp. Terrain Scan Processor 6372 | -7/Zion | Found Prototype Processor 6372 | -7/Zion | Identified Exp. Target Analyzer 6375 | -7/Zion | Found Prototype Processor 6375 | -7/Zion | Identified Spectral Analyzer 6377 | -7/Zion | Found Prototype Processor 6377 | -7/Zion | Identified Exp. Core Analyzer 6389 | -7/Zion | Found Exp. Terrain Scan Processor 6469 | -7/Zion | Met Imprinter 6475 | -7/Zion | Imprinted 6477 | -7/Zion | Declared Zion's savior 6757 | -7/Zion | Entered Proximity Caves 6757 | -6/Proximity Caves | Accompanied by 4 allies 6761 | -6/Proximity Caves | Spotted B-75 Beast 6785 | -6/Proximity Caves | Revealed the true nature of CR-A16's Pointy Stick 6789 | -6/Proximity Caves | Allies destroyed B-75 Beast 6911 | -6/Proximity Caves | Attracted the attention of an 0b10 checkpoint 7351 | -6/Proximity Caves | Learned Factory security intel 7573 | -6/Proximity Caves | Entered Factory 7573 | -6/Factory | Accompanied by 1 ally 7573 | -6/Factory | Evolved 2 slots: Utility x2 7574 | -6/Factory | Identified exit to Lower Caves 7574 | -6/Factory | Identified exit to Factory 7577 | -6/Factory | Loaded intel: 54 interactive machine locations 7578 | -6/Factory | Loaded intel: 26 terminal locations 7665 | -6/Factory | Build established: Derelict-Mutant 7714 | -6/Factory | Retrieved Zion intel report: Prototype Stockpiles 7954 | -6/Factory | Garrison activated, responded to threat 8107 | -6/Factory | Discovered exit to Lower Caves (range 6) 8113 | -6/Factory | Retrieved Zion intel report: Prototype Schematics 8114 | -6/Factory | Zion Recon squad teleported in 8137 | -6/Factory | Zion Trap Resupply teleported in 8164 | -6/Factory | Central database locked down 8240 | -6/Factory | Retrieved Zion intel report: Unaware Schematics 8273 | -6/Factory | Search patrols dispatched 8648 | -6/Factory | Spotted B-75 Beast 8671 | -6/Factory | Lost 4 parts (1n2u1w) 8686 | -6/Factory | Destroyed B-75 Beast 8721 | -6/Factory | Allied Derelicts emerged from ambush trap array 8885 | -6/Factory | Lost 4 parts (2n1u1w) 8953 | -6/Factory | Discovered exit to Factory (range 15) 8992 | -6/Factory | Fabricated X-82 Rainmaker? 9001 | -6/Factory | Build established: Scavenger-Mutant 9110 | -6/Factory | Terminal network hard line cut 9221 | -6/Factory | Entered Lower Caves 9221 | -6/Lower Caves | Accompanied by 2 allies 9247 | -6/Lower Caves | Attached Gun Armor, gained temporary slots: Weapon x2 9521 | -6/Lower Caves | Identified exit to Lower Caves 9541 | -6/Lower Caves | Build established: Scavenger-Gunner 9579 | -6/Lower Caves | Encountered a Warlord checkpoint 9670 | -6/Lower Caves | Entered another Lower Caves area 9670 | -6/Lower Caves | Accompanied by 2 allies 9743 | -6/Lower Caves | Encountered a Warlord checkpoint 9768 | -6/Lower Caves | Attracted the attention of an 0b10 outpost 10204 | -6/Lower Caves | Discovered new exit (range 11) 10235 | -6/Lower Caves | Entered Data Miner 10235 | -6/Data Miner | Accompanied by 2 allies 10235 | -6/Data Miner | Discovered new exit (range 6) 10269 | -6/Data Miner | Met Data Miner 10305 | -6/Data Miner | Learned location of Section 7 (-3) 10305 | -6/Data Miner | Acquired the access code to Warlord's prototype stash 10330 | -6/Data Miner | Received God Mode back door access code from Data Miner 10341 | -6/Data Miner | Interfaced with the Data Conduit 10456 | -6/Data Miner | Lost 3 parts (1n1u1w) 10505 | -6/Data Miner | Lost 3 parts (1n2u) 10556 | -6/Data Miner | Found Exp. Thermal Shield 10673 | -6/Data Miner | Entered Proximity Caves 10675 | -5/Proximity Caves | Greeted by an Infiltrator in a former 0b10 base 10679 | -5/Proximity Caves | Watched by a mysterious "MATRIX" hacker 10831 | -5/Proximity Caves | Build established: Scavenger-Mutant 10858 | -5/Proximity Caves | Former 0b10 base attacked by MAIN.C 11173 | -5/Proximity Caves | 0b10 base defense nominally successful 11176 | -5/Proximity Caves | Lost 13 allies 11209 | -5/Proximity Caves | Core integrity fell below 50% 11299 | -5/Proximity Caves | Lost 4 parts (1p2n1u) 11646 | -5/Proximity Caves | Learned Factory garrison access intel 11683 | -5/Proximity Caves | Discovered exit to Factory (range 16) 11739 | -5/Proximity Caves | Entered Factory 11739 | -5/Factory | Evolved 2 slots: Power x1, Weapon x1 11740 | -5/Factory | Identified exit to Upper Caves 11740 | -5/Factory | Identified exit to Extension 11741 | -5/Factory | Loaded intel: 311 machine locations 11742 | -5/Factory | Loaded intel: 4 garrison access locations 11801 | -5/Factory | Identified exit to DSF 12030 | -5/Factory | Build established: Scavenger-Gunner 12146 | -5/Factory | Discovered exit to Upper Caves (range 8) 12249 | -5/Factory | Allied Derelicts emerged from ambush trap array 12302 | -5/Factory | Zion Heavy squad teleported in 12397 | -5/Factory | Found Mni. Smartbomb Launcher 12437 | -5/Factory | Discovered new exit (range 16) 12449 | -5/Factory | Zion Recon squad teleported in 12528 | -5/Factory | P-70 Sage assimilated allied J4-52K(g) 12594 | -5/Factory | Central database locked down 12624 | -5/Factory | Discovered exit to Extension (range 12) 12656 | -5/Factory | Entered Extension 12656 | -5/Extension | Accompanied by 1 ally 12657 | -5/Extension | Loaded intel: 34 machine locations 12690 | -5/Extension | Rescued a captive Derelict 12690 | -5/Extension | Rescued a captive Derelict 12729 | -5/Extension | Zion Fire squad teleported in 12737 | -5/Extension | Rescued A7 12774 | -5/Extension | Rescued a captive Derelict 12796 | -5/Extension | Rescued a captive Derelict 12800 | -5/Extension | Rescued a captive Derelict 13086 | -5/Extension | Spotted B-75 Beast 13091 | -5/Extension | Spotted B-75 Beast 13094 | -5/Extension | Destroyed B-75 Beast 13109 | -5/Extension | Allies destroyed B-75 Beast 13188 | -5/Extension | Rescued a captive Derelict 13189 | -5/Extension | Rescued a captive Derelict 13266 | -5/Extension | Retrieved Zion intel report: Prototype Schematics 13267 | -5/Extension | Zion Heavy squad teleported in 13276 | -5/Extension | Zion Heavy squad teleported in 13285 | -5/Extension | Rescued a captive Derelict 13285 | -5/Extension | Rescued a captive Derelict 13550 | -5/Extension | Discovered new exit (range 10) 13551 | -5/Extension | Discovered new exit (range 6) 13686 | -5/Extension | Entered Cetus 13686 | -5/Cetus | Accompanied by 31 allies (A7) 13687 | -5/Cetus | Loaded intel: 24 machine locations 13691 | -5/Cetus | Acquired a Cetus Manufacturing Module code from A7 13696 | -5/Cetus | Spotted Cetus Guard 13699 | -5/Cetus | Spotted Cetus Guard 13699 | -5/Cetus | Spotted Cetus Guard 13700 | -5/Cetus | Spotted Cetus Guard 13706 | -5/Cetus | Destroyed Cetus Guard 13710 | -5/Cetus | Allies destroyed Cetus Guard 13715 | -5/Cetus | Allies destroyed Cetus Guard 13772 | -5/Cetus | Started Cetus Manufacturing Module 13797 | -5/Cetus | Manufactured an Enhanced Grunt 13797 | -5/Cetus | Escorted A7 to Cetus Mainframe 13822 | -5/Cetus | Manufactured an Enhanced Grunt 13833 | -5/Cetus | Build established: Commander-Tank 13847 | -5/Cetus | Manufactured an Enhanced Grunt 13872 | -5/Cetus | Manufactured an Enhanced Grunt 13897 | -5/Cetus | Manufactured an Enhanced Grunt 13910 | -5/Cetus | Discovered new exit (range 15) 13971 | -5/Cetus | Spotted Cetus Guard 13971 | -5/Cetus | Spotted Cetus Guard 13972 | -5/Cetus | Spotted Cetus Guard 13974 | -5/Cetus | Spotted Cetus Guard 13980 | -5/Cetus | Allies destroyed Cetus Guard 13992 | -5/Cetus | Destroyed Cetus Guard 13996 | -5/Cetus | Allies destroyed Cetus Guard 13997 | -5/Cetus | Allies destroyed Cetus Guard 14002 | -5/Cetus | Discovered new exit (range 15) 14008 | -5/Cetus | Scared off Revision 17 14024 | -5/Cetus | Lost 4 allies 14298 | -5/Cetus | Entered Archives 14298 | -5/Archives | Accompanied by 31 allies (A7) 14299 | -5/Archives | Identified exit to Hub_04(d) 14300 | -5/Archives | Loaded intel: 8 machine locations 14303 | -5/Archives | Received a hacking code to weaken MAIN.C 14383 | -5/Archives | Lost 5 allies 14395 | -5/Archives | System corruption reached 10% 14707 | -5/Archives | Found Prototype Protection 14707 | -5/Archives | Identified Zio. Weapon Casing 15113 | -5/Archives | Entered Hub_04(d) 15113 | -5/Hub_04(d) | Accompanied by 23 allies 15114 | -5/Hub_04(d) | Loaded intel: 95 machine locations 15143 | -5/Hub_04(d) | Zion Heavy squad teleported in 15172 | -5/Hub_04(d) | Garrison activated, responded to threat 15216 | -5/Hub_04(d) | Discovered new exit (range 8) 15232 | -5/Hub_04(d) | Zion Heavy squad teleported in 15242 | -5/Hub_04(d) | Zion Heavy squad teleported in 15269 | -5/Hub_04(d) | Retrieved Zion intel report: Prototype Schematics 15275 | -5/Hub_04(d) | Spotted B-75 Beast 15279 | -5/Hub_04(d) | Destroyed B-75 Beast 15399 | -5/Hub_04(d) | Network Hub disabled 15399 | -5/Hub_04(d) | Discovered new exit (range 13) 15410 | -5/Hub_04(d) | Spotted Lightning 15413 | -5/Hub_04(d) | First assault squad dispatched 15413 | -5/Hub_04(d) | Spotted Lightning 15416 | -5/Hub_04(d) | Spotted Lightning 15422 | -5/Hub_04(d) | Spotted Lightning 15437 | -5/Hub_04(d) | Spotted Lightning 15442 | -5/Hub_04(d) | Spotted Lightning 15458 | -5/Hub_04(d) | Spotted Lightning 15462 | -5/Hub_04(d) | Spotted Lightning 15466 | -5/Hub_04(d) | Spotted Lightning 15472 | -5/Hub_04(d) | System corruption reached 30% 15478 | -5/Hub_04(d) | Entered Factory 15478 | -4/Factory | Evolved 2 slots: Utility x2 15479 | -4/Factory | Loaded intel: 286 machine locations 15482 | -4/Factory | Lost 5 allies 15508 | -4/Factory | Lost 5 parts (2n2u1w) 15631 | -4/Factory | Repaired Cld. Fission Core 15729 | -4/Factory | Build established: Messiah-Mutant 15780 | -4/Factory | Spotted B-86 Titan 15795 | -4/Factory | Destroyed B-86 Titan 15822 | -4/Factory | Self-destructed Last Messages --------------- Plating. 15799_ R-10 Processor collects Hardcell Cannon. 15799_ R-10 Processor collects Imp. Coolant Injector. 15801_ R-10 Processor collects Hvy. Treads. 15803_ R-10 Processor collects Rnf. Fission Core. 15805_ Destroyed Unknown Energy Gun. 15805_ R-10 Processor collects Dynamic Insulation System. 15806_ System corrupted: Energy discharge (-198). 15810_ Hvy. Plasma Cannon destroyed. 15815_ U-05 Engineer builds a Wall. 15818_ Thunder Leg destroyed. 15820_ P-70 Sage destroyed. 15821_ Zio. Composite Leg I destroyed. 15821_ R-10 Processor collects Imp. Target Analyzer. 15822_ U-05 Engineer builds a Wall. Map ----- +----------------------------------------------------+ | ?????????????????????????????????????????????????? | | """??????????????????????????????????????????????? | | ??"??????????????????????????????????????????????? | | ??"??????????????????????????????????????????????? | | ??"??????????????????????????????????????????????? | | """??????????????????????????????????????????????? | | ??"??????????????????????????????????????????????? | | ???????????????????????""""??????????????????????? | | ???????????????????????""""??????????????????????? | | ???????????????????????""""??????????????????????? | | ??"????????????????????""""??????????????????????? | | """????????????????????""""??????????????????????? | | ??"????????????????????""""??????????????????????? | | ??"?????????"""??????????????????????????????????? | | ??"?????????"""??????????????????????????????????? | | """?????????"""??????????????????????????????????? | | ?????????????????????????????????????? #???? ???? | | ????????????"""?????????????????????? #???? ???? | | ????????????"""???????#????????????? #???? #??? | | ????????????"""???????# ???????????? #???? #??? | | ?????????????????????## ?###???????? #???? #??? | | ??????????????????????# ?# #???##??# #???? #??? | | ??????????????????????#R############ ##### #?"" | | ????????????????????###R u #?"" | | ????????????????????# *% p #?"" | | ??"""?????????????### @ % p +??? | | ??"""?????????????# R R #?"" | | ??"""?????????????# % """"""""" #?"" | | ??????????????????### != u #?"" | | ????????????? % !! """"""""" #??? | | ?""?""???? % #??? | | ?""R""????? ! #??? | | ??""""????? #"" """### ###? | | ????????????#+####### #""F"""#?# #"## | | ????????????????????###+########## # """""#?# "" | | ?????????????""??????????????????# ########?# ## | | ?????????T???""??????????????????# #????????# ## | | ????????""???"""?????????????????# #????????# ## | | ?????????????"""?????????????????# #????????# ## | | ?????????????"""?????????????????? #????????# ## | | ?????????????????????????????????? #????????# #### | | ?????????????????????????????????? #????????# #??? | | ?????????????????????????????????? ?????????? ???? | | ?????????????????????????????????? ?????????? ???? | | ?????????????????????????????????? ?????????? ???? | | ?????????????????????????????????? ?????????? ???? | | ????????????????????????????????????????????? ???? | | ?????????????????????????????????????????????+???? | | ?????????????????????????????????????????????????? | | ?????????????????????????????????????????????????? | +----------------------------------------------------+ Best States ------------- Heat Dissipation 97 Energy Generation 41 Energy Capacity 1100 Matter Stores 300 Matter Capacity 300 Sight Range 21 Robot Scan Range 16 Terrain Scan Density 10 Jamming Range 14 Base Temperature (-) 150 Armor Coverage 675 Resistance: KI 20 Resistance: TH 30 Evasion (%) 70 Melee Accuracy 5 Target Analysis 10 Core Analysis 11 Recoil Reduction 4 Particle Charging 25 Salvage Targeting 4 Offensive Hacking 10 Defensive Hacking 16 Authchip Count 1 Item Schematics ----------------- System Restoration Module | -7/Factory | Scanalyzed Antigrav System | -7/Factory | Scanalyzed Carbon-fiber Leg | -7/Factory | Scanalyzed Hvy. Particle Cannon | -7/Factory | Scanalyzed Hvy. Assault Rifle | -7/Factory | Scanalyzed Reactive Plating | -7/Factory | Scanalyzed Chainsword | -7/Factory | Scanalyzed Grenade Launcher | -7/Factory | Scanalyzed Hcp. Matter Pod | -7/Factory | Scanalyzed Lgt. Nuclear Core | -7/Factory | Scanalyzed Aluminum Leg | -7/Factory | Scanalyzed Imp. Sensor Array | -7/Factory | Scanalyzed Drone Bay | -7/Zion | Archive Gauss Rifle | -7/Zion | Archive Adv. Sensor Array | -7/Zion | Archive Launcher Guidance Computer | -7/Zion | Archive Adv. Terrain Scanner | -7/Zion | Archive Coolant Injector | -7/Zion | Archive Thermic Laser | -7/Zion | Archive Weapon Cycler | -7/Zion | Archive Neutrino Core | -7/Zion | Archive Adv. System Restoration Module | -7/Zion | Archive Gauss Cannon | -7/Zion | Archive Power Sword | -7/Zion | Archive Hvy. Rocket Launcher | -7/Zion | Archive Power Amplifier | -7/Zion | Archive Adv. Assault Cannon | -7/Zion | Archive Gravity Neutralizer | -6/Factory | Z-intel Prc. Shock Rifle | -6/Factory | Z-intel Com. Ion Cannon | -6/Factory | Z-intel Cld. Cesium-ion Thruster | -6/Factory | Z-intel Cld. VTOL Module | -6/Factory | Z-intel Biomechanical Wings | -6/Factory | Z-intel Impact Mace | -6/Factory | Z-intel Ion Burst Cannon | -6/Factory | Z-intel Prc. Assault Rifle | -6/Factory | Z-intel Combat Drone Bay | -6/Data Miner | Free Lgt. Regenerative Plating | -6/Data Miner | Free Cld. Gravmag System | -6/Data Miner | Free Imp. Energy Well | -6/Data Miner | Free Neutron Cannon | -6/Data Miner | Free Imp. Linear Gravjet | -6/Data Miner | Free Adv. Cryofiber Web | -6/Data Miner | Free Hvy. Gauss Cannon | -6/Data Miner | Free Adv. Reaction Control System | -6/Data Miner | Free Adv. Launcher Guidance Computer | -6/Data Miner | Free Biometal Medium Treads | -6/Data Miner | Free Scatter Rocket Array | -5/Extension | Z-intel Rocket Array | -5/Extension | Z-intel Antimatter Cannon | -5/Extension | Z-intel Mni. Smartbomb Launcher | -5/Extension | Z-intel Enh. Coil Gun | -5/Extension | Z-intel Force Rifle | -5/Extension | Z-intel Hpw. Field Laser | -5/Extension | Z-intel Kinetic Spear | -5/Extension | Z-intel Thunder Hammer | -5/Extension | Z-intel Enh. Fission Core | -5/Hub_04(d) | Z-intel Shock Maul | -5/Hub_04(d) | Z-intel Cold Fusion Reactor | -5/Hub_04(d) | Z-intel Lgt. Neutrino Core | -5/Hub_04(d) | Z-intel Imp. Heavy Machine Gun | -5/Hub_04(d) | Z-intel Imp. KE Penetrator | -5/Hub_04(d) | Z-intel Enh. Force Rifle | -5/Hub_04(d) | Z-intel Hvy. Gatling Laser | -5/Hub_04(d) | Z-intel Tiamat Missile Launcher | -5/Hub_04(d) | Z-intel Prc. Rocket Launcher | -5/Hub_04(d) | Z-intel Hvy. Proton Cannon | -5/Hub_04(d) | Z-intel Robot Schematics ------------------ M-28 Smith | -7/Zion | Archive O-24 Administrator | -7/Zion | Archive L-31 Rogue | -7/Zion | Archive X-82 Rainmaker | -7/Zion | Archive T-07 Excavator | -6/Factory | Z-intel A-02 Transporter | -6/Factory | Z-intel A-15 Conveyor | -6/Factory | Z-intel S-27 Virus | -6/Factory | Z-intel B-48 Gladiator | -6/Data Miner | Free R-10 Processor | -6/Data Miner | Free L-41 Fighter | -6/Data Miner | Free Y-54 Guardian | -6/Data Miner | Free A-27 Freighter | -6/Data Miner | Free W-44 Eye | -6/Data Miner | Free Fabricated ------------ X-82 Rainmaker | x2 | -6/Factory | Authchip Repaired ---------- Imp. Sensor Array | 18% | -7/Factory | Broken Cld. Fission Core | 16% | -4/Factory Studied --------- Carbon-fiber Leg | -8/Materials | Hacked Flak Cannon | -8/Materials | Hacked Aluminum Leg | -8/Materials | Hacked Hvy. Assault Rifle | -8/Materials | Hacked Lgt. Angular Momentum Engine | -7/Factory | Hacked Lgt. Nuclear Core | -7/Factory | Hacked Grenade Launcher | -7/Factory | Hacked Titanium Leg | -6/Factory | Hacked Flexi-carbon Leg | -5/Factory | Hacked Myomer Leg | -5/Factory | Hacked Matter Neutralizer | -5/Factory | Hacked Alien Tech Used ----------------- None Achievements -------------- My Bad Challenges ------------ None Game ------ Seed ComponentBeamStorm Manual? 1 Play Time 02:27:58 Cumulative 156.1 hours Start 2026.09.16 @ 13:38:32 End 2026.09.16 @ 17:47:41 Sessions 7 Manual Loads 0 Difficulty Rogue Special Mode None Game No. 96 Rogue 95 Adventurer 1 Explorer 0 Win Type - Total 11 Types 4/2/1/1/0/0/0/1/1/1 Lore% 62 Gallery% 70 Achievement% 70 Wizard Run 0 Options --------- Layout 1 ASCII 0 Keyboard 0 Movement Numpad Keybinds 0 Fullscreen 1 Font 32/SmallcapsGlow Map View 50x35 Zoom Use 0% Tactical HUD 1 Map Filters NONE Filters NONE Steam 1 RUN: 89cabc4f-f321-40a1-a5c8-8bd3b001e15b